bitfinex-derivatives/quotes_ETHF0:USTF0_20250126
["timestamp","ask_amount","ask_price","bid_price","bid_amount"]
[1737865709220,0.00446097,3361.8,3361.2,3.2078]
[1737865710023,0.00446097,3361.8,3361.4,0.59513]
[1737865710520,0.00446097,3361.8,3361.2,3.2078]
[1737865710725,0.59954097,3361.8,3361.2,3.80295]
[1737865710923,0.59954097,3361.8,3361.2,3.2078]
[1737865711222,0.59954097,3361.8,3361.3,0.59515]
[1737865711615,0.59508,3361.7,3361.2,3.80296]
[1737865711810,0.59508,3361.7,3361.2,3.2078]
[1737865712418,0.59508,3361.7,3361.2,3.80297]
[1737865712725,3.80291,3361.6,3361.1,3.20820554]
[1737865712917,3.2078,3361.6,3361.2,0.59517]
[1737865713115,3.2078,3361.6,3361.1,0.00446097]
[1737865713116,0.59514,3361.4,3361.1,0.00446097]
[1737865714222,3.2078,3361.6,3361.1,0.00446097]
[1737865714422,0.59516,3361.3,3361.1,0.00446097]
[1737865714622,3.2078,3361.6,3361.1,0.00446097]
[1737865714823,0.59512,3361.5,3361.1,0.00446097]
[1737865715023,0.59515,3361.4,3361.1,0.00446097]
[1737865715621,0.59512,3361.5,3361.1,0.00446097]
[1737865715820,0.59513,3361.5,3361.1,0.00446097]
[1737865716126,0.00446097,3361.8,3361.1,5.82083554]
[1737865716516,0.00446097,3361.8,3361.4,0.59512]
[1737865716917,0.00446097,3361.8,3361.1,5.82083554]
[1737865716918,0.00446097,3361.8,3361.7,0.59508]
[1737865717826,0.00446097,3361.8,3361.7,2.61520867]
[1737865718828,0.00446097,3361.8,3361.6,3.80289]
[1737865719030,0.00446097,3361.8,3361.5,0.59511]
[1737865719224,3.2078,3362.0,3361.6,0.59509]
[1737865719225,2.72896097,3362.0,3361.6,0.59509]
[1737865719618,3.32399097,3362.0,3361.6,0.59509]
[1737865719824,2.72896097,3362.0,3361.3,2.6014189]
[1737865720027,2.72896097,3362.0,3361.5,0.5951]
[1737865720229,0.59506,3361.9,3361.5,0.5951]
[1737865720431,0.59506,3361.8,3361.5,0.5951]
[1737865721927,0.59509,3361.7,3361.4,0.59513]
[1737865722529,0.59504,3361.9,3361.4,0.59513]
[1737865722729,0.59504,3361.9,3361.2,3.2078]
[1737865722730,2.72896097,3362.0,3361.2,3.2078]
[1737865722932,0.59506,3361.9,3361.6,0.59508]
[1737865723126,0.59506,3361.9,3361.7,0.59508]
[1737865723431,3.32399097,3362.0,3361.7,0.59508]
[1737865723630,3.32399097,3362.0,3361.6,0.59509]
[1737865723825,2.72896097,3362.0,3361.2,3.2078]
[1737865724026,0.59507,3361.8,3361.2,3.2078]
[1737865724430,2.72896097,3362.0,3361.2,3.2078]
[1737865724631,0.59506,3361.9,3361.5,0.59511]
[1737865725332,3.32400097,3362.0,3361.6,0.59509]
[1737865725534,3.32400097,3362.0,3361.7,0.59508]
[1737865725734,3.32400097,3362.0,3361.6,0.59509]
[1737865725930,0.59505,3361.9,3361.5,0.5951]
[1737865726125,3.32400097,3362.0,3361.2,3.2078]
[1737865726330,2.72896097,3362.0,3361.7,0.59508]
[1737865726532,3.32399097,3362.0,3361.6,0.59509]
[1737865726732,3.32399097,3362.0,3361.7,0.59508]
[1737865727136,3.32399097,3362.0,3361.6,0.59509]
[1737865728136,2.72896097,3362.0,3361.7,0.59508]
[1737865728636,2.72896097,3362.0,3361.2,3.2078]
[1737865728836,2.72896097,3362.0,3361.7,0.59507]
[1737865729038,3.80277,3362.4,3361.9,0.59503]
[1737865729242,3.2078,3362.4,3361.6,3.2078]
[1737865729940,0.59501,3362.2,3361.8,0.59506]
[1737865730127,3.2078,3362.4,3361.8,0.59506]
[1737865730334,0.59503,3362.0,3361.6,3.80289]
[1737865730634,3.80287,3361.8,3361.5,0.59512]
[1737865731025,3.2078,3361.8,3361.5,0.59512]
[1737865731226,3.2078,3361.8,3361.6,0.5951]
[1737865731446,3.2078,3361.8,3361.5,0.59511]
[1737865731738,3.2078,3361.8,3361.6,0.59509]
[1737865732539,0.59503,3362.0,3361.3,2.6014189]
[1737865732734,3.2078,3362.2,3361.3,2.6014189]
[1737865733144,0.59504,3362.0,3361.6,0.59509]
[1737865733642,0.59505,3361.9,3361.6,0.59509]
[1737865733842,0.59505,3361.9,3361.5,0.59511]
[1737865734038,0.35430964,3361.8,3361.5,0.59511]
[1737865734240,0.59505,3361.9,3361.5,0.59511]
[1737865734543,0.59509,3361.7,3361.3,0.59515]
[1737865735045,1.001,3362.1,3361.3,0.59515]
[1737865735046,1.0296,3362.0,3361.3,0.59515]
[1737865735239,0.59509,3361.7,3361.3,0.59515]
[1737865735540,0.59507,3361.8,3361.4,0.59512]
[1737865735844,0.59507,3361.8,3361.5,0.59511]
[1737865736735,0.59507,3361.8,3361.1,0.00446097]
[1737865736935,0.59507,3361.8,3361.4,0.59513]
[1737865737942,0.59507,3361.8,3361.5,0.59512]
[1737865738341,1.0296,3362.0,3361.1,0.00446097]
[1737865738643,0.59506,3361.9,3361.6,0.5951]
[1737865739243,1.0296,3362.0,3361.1,0.00446097]
[1737865739546,0.59503,3362.0,3361.7,0.59507]
[1737865739842,3.2078,3362.2,3361.7,0.59507]
[1737865740037,0.59504,3362.0,3361.6,0.59509]
[1737865741547,0.59504,3362.0,3361.1,0.00446097]
[1737865741548,3.2078,3362.2,3361.1,0.00446097]
[1737865741749,0.59509,3361.7,3361.3,0.59514]
[1737865741941,0.35432148,3361.6,3361.3,0.59514]
[1737865742136,0.94942148,3361.6,3361.3,0.59514]
[1737865742342,3.2078,3362.2,3361.3,0.59514]
[1737865742343,0.35432148,3361.5,3361.3,0.59514]
[1737865742548,0.59509,3361.7,3361.3,0.59514]
[1737865742745,0.35432148,3361.6,3361.1,0.00446097]
[1737865742947,0.59511,3361.6,3361.2,0.59516]
[1737865743150,0.35432148,3361.5,3361.2,0.59516]
[1737865743547,0.35432148,3361.5,3361.3,0.59514]
[1737865744642,0.35432148,3361.5,3361.1,0.00446097]
[1737865744851,0.59517,3361.3,3361.1,0.00446097]
[1737865745046,0.35432148,3361.2,3361.1,0.00446097]
[1737865745242,0.59517,3361.2,3361.1,0.00446097]
[1737865745541,0.94949148,3361.2,3361.1,0.00446097]
[1737865747147,0.94949148,3361.2,3360.2,1.0504]
[1737865747148,0.35432148,3361.2,3360.2,1.0504]
[1737865747339,0.59526,3360.7,3360.2,1.64574]
[1737865747544,0.94961148,3360.6,3360.2,1.64574]
[1737865747744,0.59529,3360.6,3360.2,1.64574]
[1737865747939,1.0252,3360.7,3360.1,1.0639]
[1737865748145,0.35438546,3360.6,3360.3,0.59532]
[1737865748350,0.35438546,3360.6,3360.1,1.0639]
[1737865748351,0.59533,3360.3,3360.1,0.00446097]
[1737865748551,1.59681,3360.5,3360.1,0.00446097]
[1737865748748,1.0015,3360.5,3360.1,0.00446097]
[1737865748949,0.59535,3360.2,3360.1,0.00446097]
[1737865749255,0.59535,3360.2,3359.5,3.2078]
[1737865749256,0.35399963,3360.2,3359.0,3.2078]
[1737865749550,0.59547,3359.5,3359.0,3.80335]
[1737865749951,1.68154,3359.7,3359.2,0.59551]
[1737865750245,3.2078,3360.2,3359.4,3.2078]
[1737865750550,3.80315,3360.2,3359.7,0.59542]
[1737865750750,3.80315,3360.2,3359.6,0.59544]
[1737865750948,3.2078,3360.2,3359.5,2.1371]
[1737865751151,3.2078,3360.2,3359.4,3.80328]
[1737865751152,0.59541,3359.9,3359.4,3.80328]
[1737865751349,0.59545,3359.7,3359.1,0.00446097]
[1737865751545,0.59543,3359.7,3359.1,0.59999097]
[1737865751852,1.0433,3359.7,3359.1,0.59999097]
[1737865752057,1.63874,3359.7,3359.2,0.59552]
[1737865752349,1.0433,3359.7,3359.1,0.00446097]
[1737865752650,0.59546,3359.6,3359.1,0.60000097]
[1737865754153,1.62896,3359.6,3359.1,0.00446097]
[1737865754546,0.59548,3359.5,3359.1,0.00446097]
[1737865754856,1.0335,3359.6,3359.2,0.59552]
[1737865755956,1.62896,3359.6,3359.1,0.60000097]
[1737865756157,0.59548,3359.5,3359.1,0.00446097]
[1737865756558,0.59548,3359.5,3359.1,0.60000097]
[1737865756949,3.2078,3359.4,3359.1,0.00446097]
[1737865757658,3.2078,3359.4,3359.1,0.60000097]
[1737865757856,3.2078,3359.4,3359.1,0.00446097]
[1737865758259,3.2078,3359.4,3359.1,0.60000097]
[1737865758760,3.2078,3359.4,3359.1,0.00446097]
[1737865759354,1.0335,3359.6,3359.1,0.00446097]
[1737865759564,3.2078,3359.9,3359.7,0.59542]
[1737865759765,3.2078,3359.9,3359.5,0.59546]
[1737865760152,3.8032,3359.9,3359.5,0.59546]
[1737865760558,0.59542,3359.8,3359.4,0.59548]
[1737865761259,0.59542,3359.8,3359.3,3.2078]
[1737865761559,3.2078,3359.9,3359.5,0.59546]
[1737865762357,3.2078,3359.9,3359.3,3.2078]
[1737865762563,3.2078,3359.9,3359.6,0.59545]
[1737865762958,3.2078,3359.9,3359.6,0.59544]
[1737865763770,3.2078,3359.9,3359.3,5.22873987]
[1737865764071,3.80321,3359.9,3359.4,0.59548]
[1737865765267,3.2078,3359.9,3359.4,0.59548]
[1737865765460,0.59543,3359.8,3359.4,0.59548]
[1737865765661,3.8032,3359.9,3359.5,0.59547]
[1737865766065,3.8032,3359.9,3359.4,0.59548]
[1737865766373,0.59542,3359.8,3359.4,0.59549]
[1737865766570,0.59544,3359.7,3359.3,5.82423987]
[1737865766866,0.59544,3359.7,3359.2,2.1707]
[1737865766867,3.2078,3359.9,3359.2,0.59551]
[1737865767268,0.59545,3359.7,3359.2,0.59551]
[1737865768067,0.59542,3359.8,3359.4,0.59547]
[1737865768376,0.59542,3359.8,3359.1,0.00446097]
[1737865768576,3.2078,3359.9,3359.3,0.5955]
[1737865768876,3.2078,3359.9,3359.1,0.00446097]
[1737865769075,0.59544,3359.7,3359.3,0.5955]
[1737865770273,0.59543,3359.8,3359.1,0.00446097]
[1737865770574,0.59545,3359.7,3359.3,0.59549]
[1737865770976,0.59546,3359.6,3359.2,0.59551]
[1737865771475,0.59544,3359.7,3359.3,0.5955]
[1737865773173,0.59542,3359.8,3359.4,0.59548]
[1737865773373,3.2078,3359.9,3359.2,3.2078]
[1737865773575,0.59544,3359.7,3359.3,0.59549]
[1737865773873,0.59543,3359.8,3359.1,0.00446097]
[1737865774078,0.59543,3359.8,3359.4,0.59549]
[1737865775175,0.35410633,3359.7,3359.4,0.59549]
[1737865775581,0.35409668,3359.7,3359.4,0.59549]
[1737865777683,0.35409668,3359.7,3359.3,2.02093987]
[1737865777983,0.35409668,3359.8,3359.7,0.59543]
[1737865779379,0.35409668,3359.8,3359.7,2.77003]
[1737865779776,0.35409668,3359.8,3359.3,2.02093987]
[1737865779983,0.35409668,3359.8,3359.7,0.59543]
[1737865782884,3.2078,3359.9,3359.8,0.59542]
[1737865783086,3.56252791,3359.9,3359.8,0.59542]
[1737865784589,3.2078,3359.9,3359.8,0.59542]
[1737865784984,3.56246091,3359.9,3359.8,0.59542]
[1737865785180,3.2078,3359.9,3359.8,0.59542]
[1737865786682,0.00446097,3360.7,3360.6,0.59527]
[1737865787886,0.00446097,3360.7,3360.3,0.59533]
[1737865788077,0.00446097,3360.7,3360.2,3.2078]
[1737865788283,0.00446097,3360.7,3360.3,0.59533]
[1737865788486,0.9541863,3360.7,3360.3,0.59532]
[1737865788688,0.35445533,3360.6,3360.3,0.59532]
[1737865789783,0.35445533,3360.6,3359.9,2.1744]
[1737865789988,0.35445533,3360.6,3360.3,0.59532]
[1737865790594,0.35445533,3360.6,3359.9,2.1744]
[1737865790783,0.35445533,3360.6,3360.4,0.5953]
[1737865790984,0.35445533,3360.6,3360.5,0.59529]
[1737865791492,0.00446097,3360.7,3360.6,0.59527]
[1737865791988,2.02093987,3361.5,3360.6,0.59527]
[1737865791989,3.2078,3361.6,3360.6,3.2078]
[1737865792188,3.2078,3361.6,3360.5,4.04187974]
[1737865792189,3.2078,3361.6,3361.5,0.59512]
[1737865792389,3.2078,3361.6,3361.3,2.02093987]
[1737865792589,3.2078,3361.6,3361.5,0.59512]
[1737865792784,3.2078,3361.6,3361.4,0.59512]
[1737865794091,3.2078,3361.6,3361.3,0.59514]
[1737865794590,3.2078,3361.6,3361.2,0.00446097]
[1737865794793,3.2078,3361.6,3361.3,0.59514]
[1737865795988,3.2078,3361.6,3361.4,0.59513]
[1737865796292,3.2078,3361.6,3361.3,0.59514]
[1737865798897,3.2078,3361.6,3361.2,0.00446097]
[1737865799195,0.00446097,3361.8,3361.6,0.59509]
[1737865799389,0.00446097,3361.8,3361.3,0.59515]
[1737865799789,0.00446097,3361.8,3361.2,0.00446097]
[1737865799996,0.00446097,3361.8,3361.5,0.5951]
[1737865800591,0.00446097,3361.8,3361.2,0.00446097]
[1737865800791,0.00446097,3361.8,3361.7,0.59508]
[1737865801187,0.00446097,3361.8,3361.2,0.00446097]
[1737865801397,0.59954097,3361.8,3361.3,0.59514]
[1737865801593,0.59954097,3361.8,3361.2,0.00446097]
[1737865801594,3.2078,3361.7,3361.2,0.00446097]
[1737865801790,3.15573987,3361.6,3361.2,0.00446097]
[1737865801986,1.1348,3361.6,3361.3,0.59514]
[1737865802800,1.1348,3361.6,3361.2,0.59962097]
[1737865803388,1.1348,3361.6,3361.2,0.00446097]
[1737865803694,3.15573987,3361.6,3361.2,0.00446097]
[1737865803895,5.82388987,3361.3,3361.2,0.00446097]
[1737865804509,3.2078,3361.3,3361.2,0.00446097]
[1737865804792,1.1348,3361.6,3361.2,0.00446097]
[1737865804994,1.1348,3361.6,3361.3,0.59514]
[1737865805686,1.1348,3361.6,3361.2,0.00446097]
[1737865805892,1.1348,3361.6,3361.2,0.59961097]
[1737865806494,1.1348,3361.6,3361.2,0.00446097]
[1737865806695,0.59514,3361.4,3361.2,0.00446097]
[1737865806893,0.59515,3361.3,3361.2,0.00446097]
[1737865807696,3.80295,3361.3,3361.2,0.00446097]
[1737865808100,3.2078,3361.3,3361.2,0.00446097]
[1737865809506,3.2078,3361.3,3361.2,0.59963097]
[1737865811406,1.0834,3361.7,3361.6,0.5951]
[1737865811407,4.2912,3361.7,3361.6,0.5951]
[1737865815506,1.0834,3361.7,3361.6,0.5951]
[1737865816106,0.00446097,3361.8,3361.7,0.59508]
[1737865819614,0.00446097,3361.8,3361.7,1.69898]
[1737865823013,0.00446097,3361.8,3361.2,0.00446097]
[1737865823218,0.59953097,3361.8,3361.5,0.59511]
[1737865823517,0.59513,3361.5,3361.2,0.00446097]
[1737865823718,0.59515,3361.3,3361.2,0.00446097]
[1737865823907,0.35373177,3361.3,3360.6,3.2078]
[1737865824111,1.66307,3361.2,3360.8,0.59523]
[1737865824410,0.35373177,3361.1,3360.8,0.59523]
[1737865824814,0.35373177,3361.1,3360.9,0.59522]
[1737865825607,0.35373177,3361.1,3360.6,3.21226097]
[1737865825608,2.02093987,3361.0,3360.6,3.21226097]
[1737865825809,3.80306,3360.7,3360.6,0.00446097]
[1737865826007,4.15683828,3360.7,3360.6,0.00446097]
[1737865826208,6.17777815,3360.7,3360.6,0.00446097]
[1737865826410,6.17777815,3360.7,3359.4,2.1582]
[1737865826411,10.57499642,3360.7,3359.4,2.1582]
[1737865826609,1.066,3360.8,3359.2,3.2078]
[1737865826610,0.5954,3359.9,3359.3,0.5955]
[1737865826915,3.2078,3360.1,3359.2,3.80332]
[1737865826916,2.73153,3359.8,3359.2,3.80332]
[1737865827117,2.73153,3359.8,3359.3,0.5955]
[1737865827318,2.1361,3359.8,3359.3,0.5955]
[1737865828111,2.1361,3359.8,3359.4,0.59547]
[1737865828716,2.73152,3359.8,3359.3,0.59549]
[1737865828930,2.1361,3359.8,3359.3,0.59549]
[1737865829211,2.1361,3359.8,3359.2,3.21226097]
[1737865829516,0.59544,3359.7,3359.2,3.80777097]
[1737865829714,2.1361,3359.8,3359.2,3.21226097]
[1737865829916,0.59551,3359.3,3359.2,0.00446097]
[1737865830713,3.2078,3359.4,3359.2,0.00446097]
[1737865830714,3.80329,3359.4,3359.2,0.00446097]
[1737865831310,0.59551,3359.3,3359.2,0.00446097]
[1737865833013,0.59551,3359.3,3358.5,0.59563]
[1737865833014,0.59554,3359.2,3358.5,0.59563]
[1737865833406,1.134,3359.1,3358.5,0.59563]
[1737865833715,1.0439,3359.0,3358.5,0.59563]
[1737865834119,1.0439,3359.0,3358.4,2.76182097]
[1737865834311,1.0439,3359.0,3358.5,0.59564]
[1737865836217,1.0439,3359.0,3358.4,2.16616097]
[1737865836617,2.02093987,3358.7,3358.4,0.00446097]
[1737865836811,3.2078,3358.6,3358.4,0.00446097]
[1737865837321,0.59565,3358.5,3358.4,0.00446097]
[1737865837722,3.80343,3358.6,3358.4,0.00446097]
[1737865838625,0.59565,3358.5,3358.4,0.00446097]
[1737865839018,3.2078,3358.6,3358.4,0.00446097]
[1737865839326,3.80344,3358.6,3358.4,0.00446097]
[1737865841011,3.2078,3358.6,3358.4,0.00446097]
[1737865841312,0.59565,3358.5,3358.4,0.00446097]
[1737865842123,3.2078,3358.6,3358.4,0.00446097]
[1737865842421,0.59565,3358.5,3358.4,0.00446097]
[1737865847426,0.59565,3358.5,3357.7,3.2078]
[1737865847427,0.59577,3357.9,3357.7,3.2078]
[1737865847621,0.59575,3357.9,3357.7,3.2078]
[1737865847817,2.02093987,3358.0,3355.6,0.35814321]
[1737865847818,0.59582,3357.6,3357.2,3.2078]
[1737865848125,2.61676987,3357.5,3357.2,3.2078]
[1737865848611,1.14256768,3357.7,3357.2,3.2078]
[1737865848612,0.00446768,3357.7,3357.2,3.2078]
[1737865848816,0.00446768,3357.7,3357.6,0.59581]
[1737865851823,0.00446768,3357.7,3357.6,3.80361]
[1737865854318,2.02093987,3358.7,3357.6,8.2078]
[1737865854517,2.02093987,3358.7,3358.1,3.2078]
[1737865854720,0.59566,3358.5,3358.2,0.59569]
[1737865854922,2.02093987,3358.7,3357.7,1.058]
[1737865855115,0.59575,3358.0,3357.7,1.65378]
[1737865855724,0.00446768,3358.2,3357.7,1.058]
[1737865855928,0.59576,3357.9,3357.7,1.058]
[1737865856125,3.80356,3357.9,3357.7,1.058]
[1737865856321,0.59577,3357.8,3357.7,1.058]
[1737865856816,3.2078,3357.9,3357.7,1.058]
[1737865857423,4.16383987,3358.1,3357.8,0.59577]
[1737865857730,0.00446768,3358.2,3357.8,1.1011]
[1737865857923,0.00446768,3358.2,3358.1,0.59572]
[1737865859023,0.00446768,3358.2,3358.1,3.80352]
[1737865861630,0.00446768,3358.2,3358.1,0.59572]
[1737865862833,0.00446768,3358.2,3358.0,0.59573]
[1737865863028,0.00446768,3358.2,3357.8,1.1011]
[1737865863535,0.00446768,3358.2,3358.1,0.59572]
[1737865864437,0.00446768,3358.2,3358.1,3.80352]
[1737865869744,3.2078,3359.6,3358.3,1.48919]
[1737865869946,0.35414634,3359.5,3359.3,0.59549]
[1737865870150,0.35414634,3359.5,3359.0,3.2078]
[1737865870354,0.59549,3359.4,3359.1,0.59553]
[1737865870551,0.35414634,3359.3,3359.2,0.59552]
[1737865870747,0.35414634,3359.3,3358.5,5.22873987]
[1737865870942,0.94966634,3359.3,3359.0,0.59555]
[1737865871149,0.35414634,3359.2,3359.0,0.59555]
[1737865871354,0.35414634,3359.2,3358.9,0.00446768]
[1737865871543,2.2007,3359.1,3358.9,0.00446768]
[1737865871751,4.15750634,3359.0,3358.9,0.00446768]
[1737865872859,5.27180634,3359.0,3358.9,0.00446768]
[1737865875649,4.67624634,3359.0,3358.9,0.00446768]
[1737865876858,3.56194634,3359.0,3358.9,0.00446768]
[1737865877457,4.15750634,3359.0,3358.9,0.00446768]
[1737865878657,3.56194634,3359.0,3358.9,0.00446768]
[1737865878847,4.15750634,3359.0,3358.9,0.00446768]
[1737865882651,3.56194634,3359.0,3358.9,0.00446768]
[1737865883161,4.15750634,3359.0,3358.9,0.00446768]
[1737865884267,3.56194634,3359.0,3358.9,0.00446768]
[1737865884960,4.15750634,3359.0,3358.9,0.00446768]
[1737865887155,4.15750634,3359.0,3358.9,1e-08]
[1737865888762,3.56194634,3359.0,3358.9,1e-08]
[1737865889061,3.56194634,3359.0,3358.9,0.59558001]
[1737865889768,0.35414634,3359.0,3358.9,3.80338001]
[1737865890070,0.35414634,3359.3,3359.2,0.59552]
[1737865890655,0.00446768,3359.6,3359.1,2.02093987]
[1737865890963,3.2078,3360.2,3359.5,3.2078]
[1737865891163,3.2078,3360.2,3360.1,0.59536]
[1737865893059,0.00446768,3360.5,3360.0,3.2078]
[1737865893269,0.00446768,3360.5,3360.4,0.59531]
[1737865893968,0.00446768,3360.5,3360.1,0.59535]
[1737865894173,0.00446768,3360.5,3360.0,0.59537]
[1737865894668,0.00446768,3360.5,3360.1,0.59536]
[1737865895367,0.00446768,3360.5,3360.3,0.59532]
[1737865895764,0.00446768,3360.5,3359.9,1.0867]
[1737865896069,3.80312,3360.4,3359.9,1.0867]
[1737865896275,0.00446768,3360.5,3360.3,0.59532]
[1737865897167,0.00446768,3360.5,3359.9,1.0867]
[1737865897373,0.00446768,3360.5,3360.2,0.59534]
[1737865897574,0.00446768,3360.5,3360.3,0.59533]
[1737865897765,0.00446768,3360.5,3360.3,0.59532]
[1737865897962,0.00446768,3360.5,3359.9,1.0867]
[1737865898161,0.00446768,3360.5,3360.2,0.59533]
[1737865898367,0.00446768,3360.5,3359.9,1.0867]
[1737865898769,3.2078,3360.4,3360.0,0.59538]
[1737865899065,3.2078,3360.4,3360.1,0.59535]
[1737865899469,3.2078,3360.4,3359.9,1.0867]
[1737865899866,3.2078,3360.4,3360.0,0.59538]
[1737865900870,3.2078,3360.4,3359.9,1.0867]
[1737865901177,3.2078,3360.4,3360.0,0.59538]
[1737865901480,3.2078,3360.4,3359.9,1.68209]
[1737865901775,3.80312,3360.4,3360.0,0.59538]
[1737865901962,3.80312,3360.4,3359.9,1.68209]
[1737865902166,3.80312,3360.4,3359.9,1.0867]
[1737865902375,3.2078,3360.4,3360.0,0.59537]
[1737865902569,0.34467226,3360.3,3359.9,1.0867]
[1737865902770,0.34467226,3360.3,3360.0,0.59538]
[1737865902968,0.34467226,3360.3,3359.9,1.0867]
[1737865903272,3.2078,3360.4,3359.9,1.0867]
[1737865903575,0.00446768,3360.5,3360.4,0.59531]
[1737865903971,0.00446768,3360.5,3360.4,1.65371]
[1737865905174,1.136,3360.9,3360.8,0.59524]
[1737865905378,1.136,3360.9,3360.8,5.82397987]
[1737865905680,1.11558278,3360.9,3360.8,5.82397987]
[1737865906377,3.2078,3362.2,3360.8,5.22873987]
[1737865906580,3.2078,3362.2,3361.7,0.59508]
[1737865906773,0.59502,3362.1,3361.7,0.59508]
[1737865907078,0.59504,3362.0,3361.6,1.67339]
[1737865907275,0.59504,3362.0,3361.7,0.59508]
[1737865907482,0.59502,3362.1,3361.7,0.59508]
[1737865907777,3.80725647,3362.2,3361.7,0.59508]
[1737865908078,3.80725647,3362.2,3361.8,0.59506]
[1737865908283,3.80725647,3362.2,3361.7,0.59506]
[1737865908467,3.21225647,3362.2,3361.6,1.0783]
[1737865908672,3.80725647,3362.2,3361.7,0.59508]
[1737865909079,0.59501,3362.1,3361.6,1.67339]
[1737865909579,3.80725647,3362.2,3361.6,1.67339]
[1737865910081,3.80725647,3362.2,3361.7,0.59508]
[1737865910275,3.80725647,3362.2,3361.6,1.0783]
[1737865910579,3.80725647,3362.2,3361.7,0.59507]
[1737865911180,3.80725647,3362.2,3361.7,0.59506]
[1737865912180,3.21225647,3362.2,3361.8,0.59506]
[1737865912369,3.21225647,3362.2,3361.6,1.0783]
[1737865912574,3.21225647,3362.2,3361.9,0.59503]
[1737865913075,3.21225647,3362.2,3361.6,1.0783]
[1737865913276,3.21225647,3362.2,3361.9,0.59504]
[1737865913677,3.21225647,3362.2,3362.1,0.59501]
[1737865913971,3.21225647,3362.2,3361.8,2.02093987]
[1737865914171,3.80724647,3362.2,3361.7,0.59507]
[1737865914373,1.0657,3362.1,3361.7,0.59507]
[1737865915182,1.0657,3362.1,3361.8,0.59506]
[1737865915784,3.21225647,3362.2,3361.8,2.02093987]
[1737865915979,3.21225647,3362.2,3362.1,0.59501]
[1737865916376,3.21225647,3362.2,3362.1,2.61594987]
[1737865920980,3.21225647,3362.2,3361.7,4.3279]
[1737865920981,3.21225647,3362.2,3361.8,2.02093987]
[1737865921485,3.21225647,3362.2,3361.5,2.02540755]
[1737865921689,0.5951,3361.6,3361.5,0.00446768]
[1737865922783,3.3182,3361.7,3360.6,2.02093987]
[1737865922983,0.59522,3361.0,3360.6,2.61620987]
[1737865923290,3.2078,3361.1,3360.6,2.02093987]
[1737865923291,1.67632,3360.9,3360.6,2.02093987]
[1737865923484,1.0811,3360.9,3360.3,5.22873987]
[1737865923688,1.0811,3360.9,3360.3,2.02093987]
[1737865923689,3.2078,3360.7,3360.3,2.02093987]
[1737865923988,0.5953,3360.5,3360.3,2.02540755]
[1737865924586,3.2078,3360.7,3360.3,2.02540755]
[1737865924789,0.59531,3360.4,3360.3,0.00446768]
[1737865927594,0.59538,3360.0,3359.7,2.02093987]
[1737865927792,0.59538,3360.0,3359.5,0.59546]
[1737865927793,1.0951,3359.9,3359.5,0.59546]
[1737865928586,1.69051,3359.9,3359.4,5.82421987]
[1737865928794,0.59543,3359.8,3359.4,5.23320755]
[1737865928993,1.0951,3359.9,3359.4,5.23320755]
[1737865929189,1.0951,3359.9,3359.4,5.82869755]
[1737865929395,1.0951,3359.9,3359.4,5.23320755]
[1737865929597,0.59542,3359.8,3359.4,3.21226768]
[1737865929998,0.59545,3359.7,3359.4,3.21226768]
[1737865930189,3.2078,3359.6,3359.4,0.00446768]
[1737865932195,3.80326,3359.6,3359.4,0.00446768]
[1737865932395,3.2078,3359.6,3359.4,0.00446768]
[1737865932602,0.59547,3359.5,3359.4,0.00446768]
[1737865933798,0.59547,3359.5,3358.3,3.2078]
[1737865933799,0.59558,3358.9,3358.3,3.2078]
[1737865933996,1.0545,3358.8,3358.3,3.80347]
[1737865935008,1.0545,3358.8,3358.3,3.2078]
[1737865936105,1.0545,3358.8,3358.4,0.59566]
[1737865936303,3.80336,3359.0,3358.4,0.59566]
[1737865936612,3.2078,3359.4,3358.9,0.59557]
[1737865936908,3.2078,3359.4,3359.0,0.59555]
[1737865937302,3.2078,3359.4,3358.9,0.59557]
[1737865937601,3.2078,3359.4,3358.9,0.59558]
[1737865937808,3.2078,3359.4,3359.1,0.59553]
[1737865938105,3.2078,3359.4,3359.0,1.0425]
[1737865938502,3.2078,3359.4,3359.0,1.63805]
[1737865939105,3.2078,3359.4,3359.1,0.59553]
[1737865940014,3.2078,3359.4,3359.0,1.63804]
[1737865940209,3.2078,3359.4,3359.0,1.0425]
[1737865940403,1.0355,3359.8,3359.1,5.22873987]
[1737865940404,3.2078,3359.8,3359.1,5.22873987]
[1737865940603,3.2078,3359.8,3359.6,0.59544]
[1737865940908,3.2078,3359.8,3359.5,2.02093987]
[1737865940909,3.2078,3359.8,3359.5,2.61639987]
[1737865941109,3.2078,3359.8,3359.6,0.59544]
[1737865941307,3.2078,3359.8,3359.4,0.59548]
[1737865941503,3.2078,3359.8,3359.0,1.0425]
[1737865941706,1.0757,3359.7,3358.9,2.02093987]
[1737865942008,0.59552,3359.3,3358.7,0.59561]
[1737865942211,1.65633,3359.2,3358.7,0.59561]
[1737865942404,4.2686,3359.2,3358.5,4.2522]
[1737865942604,4.2686,3359.2,3358.5,4.84784]
[1737865942812,0.59557,3359.0,3358.5,4.2522]
[1737865943012,0.59555,3359.1,3358.7,0.59561]
[1737865943207,3.2078,3359.2,3359.0,0.59555]
[1737865943710,0.5955,3359.4,3359.0,0.59555]
[1737865944211,0.59548,3359.5,3358.7,0.59561]
[1737865944412,0.59548,3359.5,3359.0,0.59555]
[1737865945112,5.22873987,3359.8,3358.6,2.02093987]
[1737865945312,0.59548,3359.5,3359.0,0.59555]
[1737865945917,0.59549,3359.5,3358.9,0.59556]
[1737865946116,0.59549,3359.5,3358.6,2.02093987]
[1737865946413,1.123,3359.7,3359.2,0.59551]
[1737865946613,0.59554,3359.1,3358.6,0.59562]
[1737865946819,0.59553,3359.2,3358.7,0.5956]
[1737865947505,0.59556,3359.0,3358.6,0.59563]
[1737865949312,0.59556,3359.0,3358.6,0.59562]
[1737865949705,0.59563,3358.7,3358.5,3.2078]
[1737865950310,1.0421,3358.9,3358.5,3.2078]
[1737865950512,0.59563,3358.6,3358.5,3.2078]
[1737865950711,0.59563,3358.6,3358.3,1.70607]
[1737865950905,0.59563,3358.6,3358.3,0.59567]